fUSD/lending_fUSD_20260414
["ID","MTS","AMOUNT","RATE_DAILY","PERIOD"]
[420494189,1776157634699,523.04,8.477e-05,2]
[420494191,1776157634729,523.04,8.477e-05,2]
[420494193,1776157634760,523.04,8.477e-05,2]
[420494195,1776157634801,474.82135696,8.477e-05,2]
[420494198,1776157634834,523.04,8.477e-05,2]
[420494200,1776157634869,336.27078004,8.477e-05,2]
[420494202,1776157634916,186.76921996,8.477e-05,2]
[420494205,1776157634991,431.4830687,8.477e-05,2]
[420494207,1776157635037,523.04,8.477e-05,2]
[420494209,1776157635073,523.04,8.477e-05,2]
[420494212,1776157635103,523.04,8.477e-05,2]
[420494214,1776157635137,440.16828826,8.477e-05,2]
[420494216,1776157635183,490.20828826,8.477e-05,2]
[420494218,1776157635220,232.68721334,8.477e-05,2]
[420494221,1776157635260,233.29165257,8.477e-05,2]
[420494223,1776157635317,277.94571889,8.477e-05,2]
[420494225,1776157635361,714.2224813,8.477e-05,2]
[420494227,1776157635412,5000.01,8.477e-05,2]
[420494229,1776157635449,5000.01,8.477e-05,2]
[420494231,1776157635487,5000.01,8.477e-05,2]
[420494233,1776157635542,5000.01,8.477e-05,2]
[420494235,1776157635581,5000.01,8.477e-05,2]
[420494237,1776157635624,5000.01,8.477e-05,2]
[420494239,1776157635669,5000.01,8.477e-05,2]
[420494242,1776157635736,5000.01,8.477e-05,2]
[420494244,1776157635780,5000.01,8.477e-05,2]
[420494246,1776157635819,5000.01,8.477e-05,2]
[420494248,1776157635874,145329.35163172,8.477e-05,2]
[420494300,1776157656739,1099.2216,8.477e-05,2]
[420494301,1776157662153,6248.5347,8.477e-05,2]
[420494302,1776157682346,-300.0,8.574e-05,2]
[420494303,1776157682389,-250.0,8.575e-05,2]
[420494304,1776157682438,-202.8824,8.575e-05,2]
[420494305,1776157682491,-500.0,8.575e-05,2]
[420494306,1776157682545,-500.0,8.575e-05,2]
[420494307,1776157682603,-500.0,8.575e-05,2]
[420494308,1776157682648,-277.83593509,8.575e-05,2]
[420494309,1776157687643,1696.0,8.477e-05,3]
[420494310,1776157688322,-4839.47037981,8.575e-05,2]
[420494311,1776157693400,165.0,8.477e-05,3]
[420494312,1776157694377,-10000.01,8.575e-05,2]
[420494314,1776157728915,-625.69504798,8.575e-05,2]
[420494315,1776157728977,-184.06185048,8.575e-05,2]
[420494316,1776157729018,-273.0,8.575e-05,2]
[420494317,1776157729185,-7834.49620308,8.575e-05,2]
[420494318,1776157729237,-1020.20329692,8.575e-05,2]
[420494319,1776157729271,-250.0,8.575e-05,2]
[420494320,1776157729312,-248.65370496,8.576e-05,2]
[420494321,1776157729352,-184.06185048,8.576e-05,2]
[420494322,1776157729449,-6594.17229528,8.577e-05,2]
[420494323,1776157729476,-10000.01,8.577e-05,2]
[420494324,1776157729490,-10000.01,8.577e-05,2]
[420494325,1776157735976,-10000.01,8.577e-05,2]
[420494326,1776157736246,-10000.01,8.577e-05,2]
[420494327,1776157736478,-10000.01,8.577e-05,2]
[420494328,1776157736960,-10000.01,8.577e-05,2]
[420494335,1776157791862,10000.01,8.476e-05,2]
[420494336,1776157791914,10000.01,8.476e-05,2]
[420494337,1776157791950,10000.01,8.476e-05,2]
[420494338,1776157791982,10000.01,8.476e-05,2]
[420494339,1776157792018,10000.01,8.476e-05,2]
[420494340,1776157792048,10000.01,8.476e-05,2]
[420494341,1776157792075,10000.01,8.476e-05,2]
[420494342,1776157792107,10000.01,8.476e-05,2]
[420494343,1776157792138,10000.01,8.476e-05,2]
[420494344,1776157792168,10000.01,8.476e-05,2]
[420494345,1776157792196,3139.01,8.476e-05,2]
[420494346,1776157792226,5000.01,8.476e-05,2]
[420494347,1776157792257,5000.01,8.476e-05,2]
[420494348,1776157792284,5000.01,8.476e-05,2]
[420494349,1776157792313,5000.01,8.476e-05,2]
[420494350,1776157792346,5000.01,8.476e-05,2]
[420494351,1776157792378,5000.01,8.476e-05,2]
[420494352,1776157792411,5000.01,8.476e-05,2]
[420494353,1776157792447,5000.01,8.476e-05,2]
[420494354,1776157792798,5000.01,8.476e-05,2]
[420494355,1776157792873,219032.3453,8.476e-05,2]
[420494356,1776157807630,152.0,8.476e-05,3]
[420494357,1776157810240,1611.0,8.476e-05,3]
[420494358,1776157817810,165.0,8.476e-05,3]
[420494364,1776157832040,-300.0,8.575e-05,2]
[420494365,1776157832054,-1200.0,8.575e-05,2]
[420494366,1776157832068,-500.0,8.576e-05,2]
[420494367,1776157832082,-500.0,8.576e-05,2]
[420494368,1776157832097,-500.0,8.576e-05,2]
[420494369,1776157832117,-500.0,8.576e-05,2]
[420494370,1776157832128,-151.10848075,8.576e-05,2]
[420494371,1776157832161,-511.81616656,8.576e-05,2]
[420494372,1776157832171,-511.81616656,8.576e-05,2]
[420494373,1776157832206,-511.81616656,8.576e-05,2]
[420494374,1776157832226,-511.81616656,8.576e-05,2]
[420494375,1776157832251,-511.81616656,8.576e-05,2]
[420494376,1776157832261,-511.81616656,8.576e-05,2]
[420494377,1776157832300,-511.81616656,8.576e-05,2]
[420494378,1776157832311,-511.81616656,8.576e-05,2]
[420494379,1776157832344,-511.81616656,8.576e-05,2]
[420494380,1776157832363,-511.81616656,8.576e-05,2]
[420494381,1776157832403,-511.81616656,8.576e-05,2]
[420494382,1776157832423,-511.81616656,8.576e-05,2]
[420494383,1776157832453,-511.81616656,8.576e-05,2]
[420494384,1776157832477,-511.81616656,8.576e-05,2]
[420494385,1776157832499,-511.81616656,8.576e-05,2]
[420494386,1776157832514,-511.81616656,8.576e-05,2]
[420494387,1776157832538,-511.81616656,8.576e-05,2]
[420494388,1776157832547,-511.81616656,8.576e-05,2]
[420494390,1776157832557,-511.81616656,8.576e-05,2]
[420494392,1776157832570,-511.81616656,8.576e-05,2]
[420494394,1776157832583,-511.81616656,8.576e-05,2]
[420494396,1776157832594,-511.81616656,8.576e-05,2]
[420494398,1776157832604,-511.81616656,8.576e-05,2]
[420494400,1776157832613,-511.81616656,8.576e-05,2]
[420494402,1776157832623,-511.81616656,8.576e-05,2]
[420494404,1776157832635,-511.81616656,8.576e-05,2]
[420494405,1776157832644,-511.81616656,8.576e-05,2]
[420494406,1776157832654,-511.81616656,8.576e-05,2]
[420494407,1776157832663,-511.81616656,8.576e-05,2]
[420494408,1776157832678,-511.81616656,8.576e-05,2]
[420494409,1776157832688,-511.81616656,8.576e-05,2]
[420494410,1776157832697,-511.81616656,8.576e-05,2]
[420494411,1776157832711,-511.81616656,8.576e-05,2]
[420494412,1776157832722,-511.81616656,8.576e-05,2]
[420494413,1776157832732,-511.81616656,8.576e-05,2]
[420494414,1776157832743,-511.81616656,8.576e-05,2]
[420494415,1776157832757,-511.81616656,8.576e-05,2]
[420494416,1776157832770,-511.81616656,8.576e-05,2]
[420494417,1776157832780,-511.81616656,8.576e-05,2]
[420494418,1776157832789,-511.81616656,8.576e-05,2]
[420494419,1776157832804,-342.82772236,8.576e-05,2]
[420494420,1776157832816,-508.61731552,8.576e-05,2]
[420494421,1776157832826,-508.61731552,8.576e-05,2]
[420494422,1776157832837,-508.61731552,8.576e-05,2]
[420494423,1776157832854,-508.61731552,8.576e-05,2]
[420494424,1776157832864,-508.61731552,8.576e-05,2]
[420494425,1776157832877,-508.61731552,8.576e-05,2]
[420494426,1776157832886,-508.61731552,8.576e-05,2]
[420494427,1776157832905,-508.61731552,8.576e-05,2]
[420494428,1776157832919,-508.61731552,8.576e-05,2]
[420494429,1776157832933,-508.61731552,8.576e-05,2]
[420494430,1776157832949,-508.61731552,8.576e-05,2]
[420494431,1776157832963,-508.61731552,8.576e-05,2]
[420494432,1776157832978,-508.61731552,8.576e-05,2]
[420494433,1776157832991,-508.61731552,8.576e-05,2]
[420494434,1776157833013,-508.61731552,8.576e-05,2]
[420494435,1776157833024,-508.61731552,8.576e-05,2]
[420494436,1776157833037,-508.61731552,8.576e-05,2]
[420494437,1776157833068,-508.61731552,8.576e-05,2]
[420494438,1776157833078,-508.61731552,8.576e-05,2]
[420494439,1776157833111,-508.61731552,8.576e-05,2]
[420494440,1776157833125,-508.61731552,8.576e-05,2]
[420494441,1776157833163,-508.61731552,8.576e-05,2]
[420494442,1776157833178,-508.61731552,8.576e-05,2]
[420494443,1776157833213,-508.61731552,8.576e-05,2]
[420494444,1776157833232,-508.61731552,8.576e-05,2]
[420494445,1776157833258,-508.61731552,8.576e-05,2]
[420494446,1776157833269,-500.0,8.576e-05,2]
[420494447,1776157833294,-500.0,8.576e-05,2]
[420494448,1776157833313,-500.0,8.576e-05,2]
[420494449,1776157833349,-500.0,8.576e-05,2]
[420494450,1776157833365,-358.33428364,8.576e-05,2]
[420494451,1776157833403,-502.14400424,8.576e-05,2]
[420494452,1776157833448,-502.14400424,8.576e-05,2]
[420494453,1776157833491,-502.14400424,8.576e-05,2]
[420494454,1776157833550,-502.14400424,8.576e-05,2]
[420494455,1776157833593,-502.14400424,8.576e-05,2]
[420494456,1776157833629,-502.14400424,8.576e-05,2]
[420494457,1776157833649,-502.14400424,8.576e-05,2]
[420494458,1776157833674,-502.14400424,8.576e-05,2]
[420494459,1776157833694,-502.14400424,8.576e-05,2]
[420494460,1776157833717,-502.14400424,8.576e-05,2]
[420494461,1776157833732,-502.14400424,8.576e-05,2]
[420494462,1776157833747,-502.14400424,8.576e-05,2]
[420494463,1776157833758,-502.14400424,8.576e-05,2]
[420494464,1776157833768,-502.14400424,8.576e-05,2]
[420494465,1776157833787,-502.14400424,8.576e-05,2]
[420494466,1776157833800,-502.14400424,8.576e-05,2]
[420494467,1776157833810,-502.14400424,8.576e-05,2]
[420494468,1776157833829,-502.14400424,8.576e-05,2]
[420494469,1776157833842,-502.14400424,8.576e-05,2]
[420494470,1776157833852,-502.14400424,8.576e-05,2]
[420494471,1776157833866,-502.14400421,8.576e-05,2]
[420494472,1776157833883,-500.0,8.576e-05,2]
[420494473,1776157833893,-313.53606452,8.576e-05,2]
[420494474,1776157833902,-502.1440042,8.576e-05,2]
[420494475,1776157833913,-150.0,8.576e-05,2]
[420494476,1776157833925,-300.0,8.576e-05,2]
[420494477,1776157833935,-273.0,8.576e-05,2]
[420494478,1776157833944,-10475.79916407,8.577e-05,2]
[420494480,1776157837864,-496.39233885,8.577e-05,2]
[420494483,1776157837983,-2936.5044634,8.577e-05,2]
[420494484,1776157838201,-1997.20121288,8.577e-05,2]
[420494488,1776157840407,-259.39905185,8.577e-05,2]
[420494490,1776157841847,-136.84099789,8.577e-05,2]
[420494491,1776157841885,-787.67,8.577e-05,2]
[420494492,1776157841901,-946.05260061,8.577e-05,2]
[420494496,1776157845863,-2666.32079483,8.577e-05,2]
[420494497,1776157846150,-583.6974,8.577e-05,2]
[420494498,1776157846375,-14997.48861076,8.577e-05,2]
[420494504,1776157849156,-562.39994,8.577e-05,2]
[420494505,1776157849171,-345.0,8.577e-05,2]
[420494506,1776157849198,-4230.78153678,8.577e-05,2]
[420494507,1776157849255,-666.66,8.577e-05,2]
[420494508,1776157849296,-53151.8956374,8.577e-05,2]
[420494509,1776157849371,-673.3310658,8.577e-05,2]
[420494511,1776157951065,10000.01,8.477e-05,2]
[420494512,1776157951113,10000.01,8.477e-05,2]
[420494513,1776157951147,10000.01,8.477e-05,2]
[420494514,1776157951181,10000.01,8.477e-05,2]
[420494515,1776157951237,10000.01,8.477e-05,2]
[420494516,1776157951287,10000.01,8.477e-05,2]
[420494517,1776157951356,10000.01,8.477e-05,2]
[420494518,1776157951420,10000.01,8.477e-05,2]
[420494519,1776157951474,10000.01,8.477e-05,2]
[420494520,1776157951528,159.8828,8.477e-05,2]
[420494521,1776157986763,1530.0,8.477e-05,3]
[420494551,1776158047025,1454.0,8.477e-05,3]
[420494553,1776158110602,155.0,8.477e-05,3]
[420494554,1776158110767,1381.0,8.477e-05,3]
[420494555,1776158110905,152.0,8.477e-05,3]
[420494556,1776158166510,1312.0,8.477e-05,3]
[420494557,1776158226706,1247.0,8.477e-05,3]
[420494558,1776158287096,1184.0,8.477e-05,3]
[420494559,1776158336669,1600.0,8.449e-05,2]
[420494560,1776158347922,1125.0,8.477e-05,3]
[420494561,1776158406609,152.0,8.477e-05,3]
[420494562,1776158408115,1069.0,8.477e-05,3]
[420494563,1776158420645,155.0,8.477e-05,3]
[420494564,1776158467380,1015.0,8.477e-05,3]
[420494565,1776158533198,965.0,8.477e-05,3]
[420494566,1776158586584,916.0,8.477e-05,3]
[420494567,1776158649744,871.0,8.477e-05,3]
[420494568,1776158699768,167.24,6.596e-05,2]
[420494569,1776158711304,827.0,8.477e-05,3]
[420494570,1776158717455,152.0,8.477e-05,3]
[420494571,1776158741677,155.0,8.477e-05,3]
[420494572,1776158829740,786.0,8.477e-05,3]
[420494588,1776158887806,746.0,8.477e-05,3]
[420494603,1776158946774,709.0,8.477e-05,3]
[420494623,1776158951994,1924.38,8.309e-05,2]
[420494648,1776159006964,152.0,8.477e-05,3]
[420494649,1776159008108,674.0,8.477e-05,3]
[420494652,1776159032949,-591.86802884,8.568e-05,2]
[420494653,1776159032962,-3003.13997116,8.568e-05,2]
[420494654,1776159032980,-250.0,8.572e-05,2]
[420494655,1776159032994,-150.0,8.576e-05,2]
[420494656,1776159033020,-2500.0,8.664e-05,2]
[420494657,1776159033030,-1200.0,8.742e-05,2]
[420494658,1776159033041,-7042.07780458,8.743e-05,2]
[420494659,1776159033062,-3031.8631592,8.743e-05,2]
[420494660,1776159033388,-46318.3883003,8.743e-05,2]
[420494661,1776159033424,-27528.92734356,8.743e-05,2]
[420494662,1776159033434,-500.0,8.755e-05,2]
[420494663,1776159033451,-564.0,8.757e-05,2]
[420494664,1776159033476,-21860.58089218,8.76e-05,2]
[420494665,1776159033489,-856.08682692,8.76e-05,2]
[420494666,1776159033508,-636.65095903,8.76e-05,2]
[420494667,1776159033522,-262.02687277,8.76e-05,2]
[420494668,1776159034417,-235.35768831,8.754e-05,2]
[420494669,1776159034547,-500.0,8.754e-05,2]
[420494670,1776159034681,-500.0,8.754e-05,2]
[420494671,1776159034778,-500.0,8.754e-05,2]
[420494672,1776159034860,-500.0,8.754e-05,2]
[420494673,1776159034880,-7516.03057608,8.76e-05,2]
[420494674,1776159038290,-500.0,8.754e-05,2]
[420494675,1776159038312,-500.0,8.754e-05,2]
[420494676,1776159038323,-500.0,8.754e-05,2]
[420494677,1776159038333,-500.0,8.754e-05,2]
[420494678,1776159038356,-2142.41387302,8.76e-05,2]
[420494679,1776159038366,-500.0,8.763e-05,2]
[420494680,1776159038377,-500.0,8.763e-05,2]
[420494681,1776159038400,-377.96267224,8.763e-05,2]
[420494682,1776159038410,-500.0,8.763e-05,2]
[420494683,1776159038419,-276.91542383,8.763e-05,2]
[420494684,1776159038429,-500.0,8.763e-05,2]
[420494685,1776159038448,-500.0,8.763e-05,2]
[420494686,1776159038466,-500.0,8.763e-05,2]
[420494687,1776159038477,-500.0,8.763e-05,2]
[420494688,1776159038486,-475.89016794,8.763e-05,2]
[420494689,1776159038498,-5866.44937837,8.764e-05,2]
[420494690,1776159038517,-1738.835448,8.764e-05,2]
[420494691,1776159038530,-999.8506,8.764e-05,2]
[420494692,1776159038549,-1000.51193,8.764e-05,2]
[420494693,1776159038565,-1585.73580518,8.764e-05,2]
[420494694,1776159038580,-3242.36316023,8.764e-05,2]
[420494695,1776159038596,-372668.92291579,8.764e-05,2]
[420494696,1776159038607,-436.75223375,8.764e-05,2]
[420494697,1776159038620,-431.69598331,8.764e-05,2]
[420494698,1776159038640,-1164.20361154,8.764e-05,2]
[420494699,1776159038652,-993.71667762,8.764e-05,2]
[420494700,1776159038706,-1033.56296967,8.764e-05,2]
[420494701,1776159038722,-1337.35,8.764e-05,2]
[420494702,1776159038766,-323.64549481,8.764e-05,2]
[420494708,1776159040323,-1080.21388004,8.764e-05,2]
[420494709,1776159040340,-265.96,8.764e-05,2]
[420494710,1776159040405,-624.63550007,8.764e-05,2]
[420494711,1776159040539,-1039.73608797,8.764e-05,2]
[420494712,1776159040563,-956.07059041,8.764e-05,2]
[420494713,1776159040579,-678.77168907,8.764e-05,2]
[420494714,1776159040599,-265.1286,8.764e-05,2]
[420494715,1776159040883,-162981.13374417,8.764e-05,2]
[420494716,1776159040894,-150.0,8.8e-05,2]
[420494717,1776159040905,-164.58,8.815e-05,2]
[420494718,1776159040918,-1852.42,8.823e-05,2]
[420494719,1776159040930,-500.0,8.933e-05,2]
[420494720,1776159040944,-1500.0,8.949e-05,2]
[420494721,1776159040973,-1797.504,8.996e-05,2]
[420494722,1776159040983,-564.0,9.031e-05,2]
[420494723,1776159041007,-150.0,9.145e-05,2]
[420494724,1776159041024,-200.0,9.146e-05,2]
[420494725,1776159041040,-164.58,9.179e-05,2]
[420494726,1776159041054,-564.0,9.305e-05,2]
[420494727,1776159041071,-250.0,9.425e-05,2]
[420494729,1776159041087,-179.14916869,9.425e-05,2]
[420494731,1776159041121,-5000.70945023,9.425e-05,2]
[420494733,1776159041133,-250.0,9.425e-05,2]
[420494734,1776159041146,-1600.0,9.505e-05,2]
[420494735,1776159041175,-164.58,9.543e-05,2]
[420494736,1776159041188,-564.0,9.579e-05,2]
[420494737,1776159041230,-1680.0,9.616e-05,2]
[420494738,1776159041241,-8979.04781004,9.697e-05,2]
[420494739,1776159041269,-196.03277228,9.754e-05,2]
[420494740,1776159041308,-10116.35,9.754e-05,2]
[420494741,1776159041341,-150.0,9.799e-05,2]
[420494742,1776159041357,-599.168,9.853e-05,2]
[420494743,1776159041379,-564.0,9.853e-05,2]
[420494744,1776159041390,-167.24,9.894e-05,2]
[420494745,1776159041419,-1000.0,9.9e-05,2]
[420494746,1776159041449,-21801.5917,9.9e-05,2]
[420494747,1776159041458,-164.58,9.907e-05,2]
[420494748,1776159041470,-500.0,9.916e-05,2]
[420494749,1776159041493,-501.08118823,9.973e-05,2]
[420494750,1776159041503,-500.0,9.973e-05,2]
[420494751,1776159041513,-160.02455239,9.973e-05,2]
[420494752,1776159041530,-160.0128224,9.973e-05,2]
[420494753,1776159041540,-610.3510203,9.973e-05,2]
[420494754,1776159041556,-500.0,9.973e-05,2]
[420494755,1776159041566,-165.19144455,9.973e-05,2]
[420494756,1776159041575,-160.03259129,9.973e-05,2]
[420494757,1776159041585,-500.0,9.973e-05,2]
[420494758,1776159041600,-349.34400429,9.973e-05,2]
[420494759,1776159041609,-500.25057568,9.973e-05,2]
[420494760,1776159041627,-151.0,9.997e-05,2]
[420494761,1776159041636,-15457.93,0.0001,2]
[420494762,1776159041646,-309.29973888,0.0001,2]
[420494763,1776159041663,-151.0,0.0001,2]
[420494764,1776159041674,-151.0,0.0001,2]
[420494765,1776159041683,-12165.51052335,0.0001,2]
[420494766,1776159041697,-44546.44922053,0.0001,2]
[420494767,1776159041734,-333.26194966,0.0001,2]
[420494774,1776159043127,-23562.24620963,0.0001,2]
[420494775,1776159043452,-1625.27450502,0.0001,2]
[420494776,1776159043515,-24761.25759181,0.0001,2]
[420494777,1776159043575,-176.8853891,0.0001,2]
[420494778,1776159043590,-151.0,0.0001,2]
[420494780,1776159043617,-151.754511,0.0001,2]
[420494782,1776159043627,-5268.31529653,0.0001,2]
[420494784,1776159043638,-11287.20203755,0.0001,2]
[420494786,1776159043662,-10049.73514456,0.0001,2]
[420494787,1776159043674,-12524.66893061,0.0001,2]
[420494788,1776159043689,-151.0,0.0001,2]
[420494789,1776159043725,-151.0,0.0001,2]
[420494790,1776159043741,-200.0,0.0001,2]
[420494791,1776159043758,-500.0,0.0001,2]
[420494792,1776159043774,-151.0,0.0001,2]
[420494793,1776159043790,-500.0,0.0001,2]
[420494794,1776159043813,-151.0,0.0001,2]
[420494795,1776159043823,-500.0,0.0001,2]
[420494796,1776159043841,-151.0,0.0001,2]
[420494797,1776159043863,-500.0,0.0001,2]
[420494798,1776159043873,-151.0,0.0001,2]
[420494799,1776159043890,-500.0,0.0001,2]
[420494800,1776159043905,-151.0,0.0001,2]
[420494801,1776159043915,-500.0,0.0001,2]
[420494802,1776159043929,-151.0,0.0001,2]
[420494803,1776159043943,-500.0,0.0001,2]
[420494804,1776159043955,-151.0,0.0001,2]
[420494805,1776159043970,-600.0,0.0001,3]
[420494806,1776159043998,-500.0,0.0001,2]
[420494808,1776159044011,-151.0,0.0001,2]
[420494810,1776159044048,-500.0,0.0001,2]
[420494812,1776159044064,-151.0,0.0001,2]
[420494814,1776159044083,-500.0,0.0001,2]
[420494815,1776159044099,-151.0,0.0001,2]
[420494816,1776159044121,-151.0,0.0001,2]
[420494817,1776159044148,-436.47467264,0.0001,2]
[420494818,1776159044162,-500.0,0.0001,2]
[420494819,1776159044193,-500.0,0.0001,2]
[420494820,1776159044209,-500.0,0.0001,2]
[420494821,1776159044230,-500.0,0.0001,2]
[420494822,1776159044265,-500.0,0.0001,2]
[420494823,1776159044279,-500.0,0.0001,2]
[420494824,1776159044307,-500.0,0.0001,2]
[420494825,1776159044321,-500.0,0.0001,2]
[420494826,1776159044341,-500.0,0.0001,2]
[420494827,1776159044358,-500.0,0.0001,2]
[420494828,1776159044378,-500.0,0.0001,2]
[420494829,1776159044405,-1386.78395259,0.0001,2]
[420494830,1776159044902,-364.89977803,0.0001,2]
[420494831,1776159044980,-800.259717,0.0001,2]
[420494832,1776159045009,-800.259717,0.0001,2]
[420494833,1776159045019,-800.259717,0.0001,2]
[420494834,1776159045033,-800.259717,0.0001,2]
[420494835,1776159045064,-2949.7503199,0.0001,2]
[420494836,1776159045076,-151.0,0.0001,2]
[420494837,1776159045086,-151.0,0.0001,2]
[420494838,1776159045102,-564.05505446,0.00010127,2]
[420494839,1776159045118,-190.1199,0.000102,2]
[420494840,1776159045128,-500.0,0.00010231,2]
[420494841,1776159045152,-5500.48,0.00010238,2]
[420494842,1776159045164,-164.58,0.0001027,2]
[420494843,1776159045173,-674.0,0.00010418,3]
[420494844,1776159045183,-150.0,0.00010452,2]
[420494845,1776159045202,-131.99855322,0.00010475,2]
[420494848,1776159047683,-500.0,8.754e-05,2]
[420494849,1776159047694,-151.0,0.00010475,2]
[420494850,1776159047706,-151.0,0.00010475,2]
[420494851,1776159047730,-9867.99144678,0.00010475,2]
[420494852,1776159047741,-9999.99,0.00010475,2]
[420494853,1776159047755,-6336.79,0.00010475,2]
[420494854,1776159047782,-299.99,0.00010475,2]
[420494855,1776159047814,-5532.0,0.000105,3]
[420494856,1776159047824,-82.48941189,0.00010521,2]
[420494857,1776159059058,500.0,8.754e-05,2]
[420494858,1776159059107,500.0,8.754e-05,2]
[420494859,1776159059163,500.0,8.754e-05,2]
[420494860,1776159059238,500.0,8.754e-05,2]
[420494861,1776159059314,500.0,8.754e-05,2]
[420494862,1776159059371,500.0,8.754e-05,2]
[420494863,1776159059433,500.0,8.754e-05,2]
[420494864,1776159059511,500.0,8.754e-05,2]
[420494865,1776159059582,500.0,8.754e-05,2]
[420494866,1776159059655,500.0,8.754e-05,2]
[420494867,1776159059744,500.0,8.754e-05,2]
[420494868,1776159059810,500.0,8.754e-05,2]
[420494869,1776159059903,500.0,8.754e-05,2]
[420494870,1776159059969,500.0,8.754e-05,2]
[420494871,1776159060021,500.0,8.754e-05,2]
[420494872,1776159060113,500.0,8.754e-05,2]
[420494873,1776159060216,500.0,8.754e-05,2]
[420494874,1776159060346,500.0,8.754e-05,2]
[420494875,1776159060989,500.0,8.754e-05,2]
[420494876,1776159070544,155.0,8.754e-05,3]
[420494877,1776159072102,345.01,8.754e-05,2]
[420494878,1776159072151,154.99,8.754e-05,2]
[420494879,1776159072239,500.0,8.754e-05,2]
[420494880,1776159072324,500.0,8.754e-05,2]
[420494881,1776159072414,500.0,8.754e-05,2]
[420494882,1776159072489,500.0,8.754e-05,2]
[420494883,1776159072556,500.0,8.754e-05,2]
[420494884,1776159072719,320.61855484,8.754e-05,2]
[420494885,1776159089939,2500.0,8.664e-05,2]
[420494886,1776159104149,379.59528223,8.763e-05,2]
[420494887,1776159110901,157.53931858,8.763e-05,2]
[420494888,1776159128597,10000.01,8.66e-05,2]
[420494889,1776159128646,10000.01,8.66e-05,2]
[420494890,1776159128679,3648.7816,8.66e-05,2]
[420494891,1776159186545,606.0,8.66e-05,3]
[420494892,1776159248061,576.0,8.66e-05,3]
[420494893,1776159306718,152.0,8.66e-05,3]
[420494894,1776159308603,547.0,8.66e-05,3]
[420494896,1776159371328,520.0,8.66e-05,3]
[420494897,1776159381111,155.0,8.66e-05,3]
[420494933,1776159426679,494.0,8.66e-05,3]
[420495265,1776159545431,469.0,8.66e-05,3]
[420495269,1776159607567,152.0,8.66e-05,3]
[420495277,1776159615445,446.0,8.66e-05,3]
[420495282,1776159669531,423.0,8.66e-05,3]
[420495284,1776159694714,2770.32,4.662e-05,2]
[420495285,1776159694933,2770.32,4.907e-05,2]
[420495286,1776159695111,525.37,5.153e-05,2]
[420495287,1776159695142,2244.95,5.153e-05,2]
[420495288,1776159695313,2770.32,5.398e-05,2]
[420495289,1776159695544,2770.32,5.643e-05,2]
[420495290,1776159695729,2214.42,5.889e-05,2]
[420495291,1776159695768,555.9,5.889e-05,2]
[420495292,1776159696004,2770.32,6.134e-05,2]
[420495293,1776159696249,2770.32,6.379e-05,2]
[420495294,1776159696474,2770.32,6.625e-05,2]
[420495295,1776159696664,1133.15,6.87e-05,2]
[420495296,1776159696688,1637.17,6.87e-05,2]
[420495297,1776159696860,2770.32,7.115e-05,2]
[420495298,1776159697286,2770.32,7.361e-05,2]
[420495300,1776159697546,2770.32,7.606e-05,2]
[420495301,1776159698058,51.88,7.852e-05,2]
[420495302,1776159698175,2718.44,7.852e-05,2]
[420495303,1776159698513,2770.32,8.097e-05,2]
[420495304,1776159698640,2770.32,8.342e-05,2]
[420495305,1776159699015,1740.93,8.588e-05,2]
[420495306,1776159699040,1029.39,8.588e-05,2]
[420495307,1776159703189,155.0,8.66e-05,3]
[420495308,1776159727505,402.0,8.66e-05,3]
[420495311,1776159785927,382.0,8.66e-05,3]
[420495312,1776159847376,363.0,8.66e-05,3]
[420495313,1776159907320,152.0,8.66e-05,3]
[420495314,1776159911837,345.0,8.66e-05,3]
[420495315,1776159968862,328.0,8.66e-05,3]
[420495316,1776159977366,152.0,7.507e-05,7]
[420495322,1776160028626,311.0,8.66e-05,3]
[420495323,1776160031255,155.0,8.66e-05,3]
[420495324,1776160090681,157.0,8.66e-05,3]
[420495327,1776160147064,288.0,8.66e-05,3]